bitfinex-derivatives/quotes_BNBF0:USTF0_20250331
["timestamp","ask_amount","ask_price","bid_price","bid_amount"]
[1743398908043,5.11190509,604.96,604.2,0.33101621]
[1743398908236,2.20444807,604.95,604.2,0.33101621]
[1743398908436,2.2043421,604.95,604.2,0.33101621]
[1743398909044,0.28794479,605.01,604.2,0.33101621]
[1743398909045,4.70225741,605.01,604.2,0.33101621]
[1743398909244,6.03390088,605.0,604.2,0.33101621]
[1743398909444,5.72995058,604.99,604.2,0.33101621]
[1743398909743,0.82227372,604.98,604.2,0.33101621]
[1743398909946,2.90745702,604.98,604.2,0.33101621]
[1743398910146,7.32176964,604.98,604.2,0.33101621]
[1743398910342,4.41431262,604.97,604.2,0.33101621]
[1743398910547,3.72973074,604.96,604.2,0.33101621]
[1743398910748,3.59205622,604.95,604.2,0.33101621]
[1743398910950,0.82227372,604.94,604.2,0.33101621]
[1743398911144,1.93923473,604.94,604.2,0.33101621]
[1743398911345,3.32130468,604.94,604.2,0.33101621]
[1743398911743,2.20434367,604.94,604.2,0.33101621]
[1743398912049,1.11014467,605.01,604.2,0.33101621]
[1743398912244,0.30396076,605.0,604.2,0.33101621]
[1743398912648,2.44189591,605.0,604.2,0.33101621]
[1743398912845,5.34935293,605.0,604.2,0.33101621]
[1743398913045,6.03311187,604.99,604.2,0.33101621]
[1743398913249,2.44189591,604.98,604.2,0.33101621]
[1743398913451,0.30396076,604.97,604.2,0.33101621]
[1743398914056,1.12624351,604.97,604.2,0.33101621]
[1743398914257,5.72915111,604.97,604.2,0.33101621]
[1743398914454,2.13793515,604.96,604.2,0.33101621]
[1743398914651,5.72915111,604.96,604.2,0.33101621]
[1743398914852,0.82228275,604.95,604.2,0.33101621]
[1743398915057,1.93924376,604.95,604.2,0.33101621]
[1743398915358,0.82228275,604.95,604.2,0.33101621]
[1743398915559,8.6369277,604.95,604.2,0.33101621]
[1743398915759,4.41349871,604.94,604.2,0.33101621]
[1743398916064,3.72973977,604.93,604.2,0.33101621]
[1743398916262,1.38123691,604.92,604.2,0.33101621]
[1743398916559,2.20351966,604.92,604.2,0.33101621]
[1743398917259,0.28796505,604.97,604.2,0.33101621]
[1743398918457,5.73046704,605.05,604.2,0.33101621]
[1743398918659,0.30396959,605.02,604.2,0.33101621]
[1743398919062,6.03443663,605.02,604.2,0.33101621]
[1743398919259,2.44239942,605.01,604.2,0.33101621]
[1743398919462,0.30396959,605.0,604.2,0.33101621]
[1743398919664,1.41421143,605.0,604.2,0.33101621]
[1743398919863,6.01842613,605.0,604.2,0.33101621]
[1743398920061,2.13842983,604.99,604.2,0.33101621]
[1743398920467,5.73046704,604.99,604.2,0.33101621]
[1743398920663,5.04588685,604.98,604.2,0.33101621]
[1743398920867,3.59203721,604.97,604.2,0.33101621]
[1743398921170,1.11696101,604.96,604.2,0.33101621]
[1743398921368,6.84742805,604.96,604.2,0.33101621]
[1743398921671,5.73046704,604.95,604.2,0.33101621]
[1743398921865,2.13842983,604.94,604.2,0.33101621]
[1743398922062,4.41930957,604.94,604.2,0.33101621]
[1743398922267,5.73545665,604.93,604.2,0.33101621]
[1743398922463,2.13842983,604.92,604.2,0.33101621]
[1743398922663,3.72973977,604.92,604.2,0.33101621]
[1743398922867,3.59702682,604.91,604.2,0.33101621]
[1743398923065,5.73750195,604.91,604.2,0.33101621]
[1743398923264,3.72973977,604.9,604.2,0.33101621]
[1743398923468,3.59702682,604.89,604.2,0.33101621]
[1743398923664,0.82228275,604.88,604.2,0.33101621]
[1743398924068,3.72973977,604.88,604.2,0.33101621]
[1743398924269,1.38347185,604.87,604.2,0.33101621]
[1743398924572,2.2057546,604.87,604.2,0.33101621]
[1743398924870,5.73875417,605.01,604.2,0.33101621]
[1743398925064,2.14068935,605.0,604.2,0.33101621]
[1743398925268,5.73875417,605.0,604.2,0.33101621]
[1743398925469,5.73875417,604.99,604.2,0.33101621]
[1743398925665,5.73875417,604.98,604.2,0.33101621]
[1743398925964,5.74170891,604.97,604.2,0.33101621]
[1743398926169,5.74170891,604.96,604.2,0.33101621]
[1743398926369,5.05008582,604.95,604.2,0.33101621]
[1743398926568,3.59908011,604.94,604.2,0.33101621]
[1743398926764,5.74170891,604.94,604.2,0.33101621]
[1743398926967,3.25958981,604.93,604.2,0.33101621]
[1743398927166,6.85866992,604.93,604.2,0.33101621]
[1743398927372,5.74170891,604.92,604.2,0.33101621]
[1743398927671,5.74170891,604.91,604.2,0.33101621]
[1743398927867,2.1426288,604.9,604.2,0.33101621]
[1743398928069,0.824088,604.9,604.2,0.33101621]
[1743398928274,3.73154502,604.9,604.2,0.33101621]
[1743398928479,3.59908011,604.89,604.2,0.33101621]
[1743398928667,5.74170891,604.89,604.2,0.33101621]
[1743398928871,2.1426288,604.88,604.2,0.33101621]
[1743398929071,3.73154502,604.88,604.2,0.33101621]
[1743398929373,3.59908011,604.87,604.2,0.33101621]
[1743398929575,1.94104901,604.86,604.2,0.33101621]
[1743398929877,5.54012912,604.86,604.2,0.33101621]
[1743398930076,0.824088,604.85,604.2,0.33101621]
[1743398930275,2.20834958,604.85,604.2,0.33101621]
[1743398930470,5.1158066,604.85,604.2,0.33101621]
[1743398930671,2.20834958,604.84,604.2,0.33101621]
[1743398931068,0.28790191,604.97,604.2,0.33101621]
[1743398931573,2.53496101,604.96,604.2,0.33101621]
[1743398932074,1.11696101,604.95,604.2,0.33101621]
[1743398932471,1.38426158,604.94,604.2,0.33101621]
[1743398932673,2.20834958,604.93,604.2,0.33101621]
[1743398932873,1.38426158,604.92,604.2,0.33101621]
[1743398933071,1.38426158,604.91,604.2,0.33101621]
[1743398933282,2.20834958,604.9,604.2,0.33101621]
[1743398933471,2.20834958,604.89,604.2,0.33101621]
[1743398933673,2.20834958,604.88,604.2,0.33101621]
[1743398933872,2.20834958,604.87,604.2,0.33101621]
[1743398934077,2.20834958,604.86,604.2,0.33101621]
[1743398934274,1.38426158,604.85,604.2,0.33101621]
[1743398934479,1.38426158,604.84,604.2,0.33101621]
[1743398934779,1.11696101,604.85,604.2,0.33101621]
[1743398935083,3.32531059,604.84,604.2,0.33101621]
[1743398935272,2.20834958,604.83,604.2,0.33101621]
[1743398935477,1.38426158,604.82,604.2,0.33101621]
[1743398935676,2.20834958,604.81,603.88,0.28798173]
[1743398935878,1.38426158,604.8,603.88,0.28798173]
[1743398936085,1.38426158,604.79,603.88,0.28798173]
[1743398936274,3.6006604,604.81,603.88,0.28798173]
[1743398936473,1.11696101,604.79,603.88,0.28798173]
[1743398936677,2.50122259,604.79,603.88,0.28798173]
[1743398936877,1.11696101,604.78,603.88,0.28798173]
[1743398937278,3.26033168,604.78,603.88,0.28798173]
[1743398937475,3.32596489,604.77,603.88,0.28798173]
[1743398937680,1.38463055,604.76,603.88,0.28798173]
[1743398937975,7.82649379,604.77,603.88,0.28798173]
[1743398938175,1.11696101,604.75,603.88,0.28798173]
[1743398938379,3.32596489,604.75,603.88,0.28798173]
[1743398938579,1.11696101,604.74,603.88,0.28798173]
[1743398939087,6.85579333,604.74,602.46,2.52044129]
[1743398939378,6.03207301,604.73,603.79,0.28819518]
[1743398939681,2.14167284,604.72,602.46,2.52044129]
[1743398939882,3.52519572,604.72,602.57,0.33191164]
[1743398940083,1.11696101,604.71,602.58,0.28478744]
[1743398940284,2.50048389,604.71,602.68,0.33185106]
[1743398940482,3.25863385,604.71,602.69,0.28478744]
[1743398940678,6.85579333,604.71,602.79,0.3317905]
[1743398940884,5.73883232,604.7,602.79,0.3317905]
[1743398941081,5.73883232,604.69,602.8,0.28478744]
[1743398941287,5.73883232,604.68,602.81,0.28478744]
[1743398941483,5.73883232,604.67,602.83,0.33176849]
[1743398941686,5.73883232,604.66,602.84,0.28478744]
[1743398941884,0.82372032,604.65,602.83,0.33176849]
[1743398942185,3.73117734,604.65,602.83,0.33176849]
[1743398942386,3.59441722,604.64,602.83,0.33176849]
[1743398942589,0.82372032,604.63,602.84,0.28480422]
[1743398942982,1.11696101,604.63,602.94,2.52044129]
[1743398943186,5.53510121,604.63,602.96,0.33169696]
[1743398943388,3.73117734,604.62,602.97,0.28480422]
[1743398943591,1.38352288,604.61,602.97,0.28480422]
[1743398943785,2.2072432,604.61,602.99,0.33168045]
[1743398943985,2.2072432,604.61,603.0,0.28480422]
[1743398944186,2.2072432,604.61,603.02,0.33166395]
[1743398944385,0.28816654,604.62,603.03,0.28480422]
[1743398944680,0.28816654,604.62,603.05,0.33164745]
[1743398944885,0.28816654,604.62,603.06,0.28480422]
[1743398945196,0.28816654,604.62,603.07,0.28480422]
[1743398945384,5.73221357,604.79,603.08,0.28480422]
[1743398945584,2.44333204,604.78,603.09,0.28480422]
[1743398945782,0.30411974,604.77,603.1,0.28480422]
[1743398945985,0.30411974,604.77,603.11,0.28480422]
[1743398946187,0.30411974,604.77,603.05,0.33164745]
[1743398946188,1.12784006,604.77,603.12,0.28480422]
[1743398946381,0.30411974,604.76,603.13,0.61640768]
[1743398946581,2.7314449,604.76,603.15,0.33159247]
[1743398946781,4.70110125,604.76,603.16,0.28480422]
[1743398946983,2.20420804,604.75,603.17,0.28480422]
[1743398947184,2.90745702,604.75,603.19,0.33157048]
[1743398947391,5.11166506,604.75,603.2,0.28480422]
[1743398947592,2.20420804,604.74,603.22,0.33155399]
[1743398947785,2.20362727,604.74,603.23,0.28467521]
[1743398947992,2.20362727,604.74,603.25,0.3315375]
[1743398948183,0.28811286,604.76,603.25,0.3315375]
[1743398948388,0.28811286,604.76,603.26,0.28467521]
[1743398948590,5.7259673,604.92,603.28,0.33152101]
[1743398948894,2.44231063,604.91,603.29,0.28467521]
[1743398949095,0.30410496,604.9,603.31,0.33150453]
[1743398949287,1.12782528,604.9,603.32,0.28467521]
[1743398949489,5.7259673,604.9,603.34,0.33148804]
[1743398949689,2.73038342,604.89,603.35,0.28469609]
[1743398949993,0.30410901,604.88,603.37,0.33147156]
[1743398950191,0.30410901,604.88,603.38,0.28469609]
[1743398950386,0.30410901,604.88,603.4,0.33145508]
[1743398950686,1.12782933,604.88,603.41,0.28469609]
[1743398950887,0.30410901,604.87,603.43,0.3314386]
[1743398951087,2.44231468,604.87,603.44,0.28469609]
[1743398951392,0.30410901,604.86,603.46,0.33142213]
[1743398951590,1.1254255,604.86,603.47,0.28469609]
[1743398951791,0.30410901,604.85,603.49,0.33140565]
[1743398951986,6.02619658,604.85,603.5,0.28469609]
[1743398952189,2.43953188,604.84,603.52,0.33138918]
[1743398952391,0.30410901,604.83,603.53,0.28469609]
[1743398952691,0.59217894,604.83,603.55,0.33137271]
[1743398952887,0.30410901,604.82,603.56,0.28469609]
[1743398953086,0.30410901,604.82,603.57,0.33136173]
[1743398953290,2.43953188,604.82,603.58,0.28469609]
[1743398953592,0.30410901,604.81,603.59,0.33135075]
[1743398953790,2.43928456,604.81,603.6,0.28469609]
[1743398953993,0.30410901,604.8,603.6,0.28469609]
[1743398954289,0.30410901,604.8,603.61,0.33133977]
[1743398954495,2.43928456,604.8,603.62,0.28469609]
[1743398954694,0.30410901,604.79,603.63,0.33132879]
[1743398954894,1.12533037,604.79,603.64,0.28469609]
[1743398955091,0.30410901,604.78,603.65,0.33131781]
[1743398955395,8.9326836,604.78,603.66,0.28469609]
[1743398955595,6.3132822,604.77,603.67,0.33130683]
[1743398955788,2.43928456,604.76,603.68,0.28469609]
[1743398955989,0.30410901,604.75,603.69,0.33129586]
[1743398956189,1.12533037,604.75,603.7,0.28469609]
[1743398956390,0.30410901,604.74,603.71,0.33128488]
[1743398956589,2.43928456,604.74,603.72,0.28469609]
[1743398956789,0.30410901,604.73,603.72,0.28469609]
[1743398956991,1.12533037,604.73,603.72,0.28469609]
[1743398957195,8.9326836,604.73,603.72,0.28469609]
[1743398957390,6.02522658,604.72,603.73,0.33127391]
[1743398957589,2.43928456,604.71,603.74,0.28469609]
[1743398957794,0.30410901,604.7,603.74,0.61596451]
[1743398957995,0.30410901,604.7,603.75,0.28469609]
[1743398958196,1.12533037,604.7,603.75,0.28469609]
[1743398958394,0.30410901,604.69,603.75,0.28469609]
[1743398958595,2.43928456,604.69,603.75,0.28469609]
[1743398958796,0.30410901,604.68,603.75,0.28469609]
[1743398959096,1.12533037,604.68,603.75,0.28469609]
[1743398959294,0.30410901,604.67,603.75,0.28469609]
[1743398959489,4.71127239,604.67,603.75,0.28469609]
[1743398959695,1.12533037,604.66,603.75,0.28469609]
[1743398959894,0.30410901,604.65,603.75,0.28469609]
[1743398960093,0.82122136,604.65,603.75,0.28469609]
[1743398960296,2.20042983,604.65,603.75,0.28469609]
[1743398960698,0.28805443,604.69,603.75,0.28469609]
[1743398960901,0.30413001,604.68,603.75,0.28469609]
[1743398963794,0.30413001,604.8,603.75,0.28469609]
[1743398963995,0.30413001,604.79,603.75,0.28469609]
[1743398964401,2.43852017,604.79,603.75,0.28469609]
[1743398964599,0.30413001,604.78,603.75,0.28469609]
[1743398964799,0.59218206,604.78,603.75,0.28469609]
[1743398964995,0.30413001,604.77,603.75,0.28469609]
[1743398965398,2.43852017,604.77,603.75,0.28469609]
[1743398965601,2.43852017,604.77,603.74,0.33126842]
[1743398965602,0.30413001,604.76,603.74,0.33126842]
[1743398965800,2.43852017,604.76,603.74,0.33126842]
[1743398965994,0.30413001,604.75,603.74,0.33126842]
[1743398966495,1.12535137,604.75,603.74,0.33126842]
[1743398966699,8.62558286,604.75,603.74,0.33126842]
[1743398966893,6.0061767,604.74,603.74,0.33126842]
[1743398967099,5.04184718,604.73,603.74,0.33126842]
[1743398967299,3.58373568,604.72,603.74,0.33126842]
[1743398967499,1.11696101,604.71,603.74,0.33126842]
[1743398967695,5.52191805,604.71,603.74,0.33126842]
[1743398967896,0.82122136,604.7,603.74,0.33126842]
[1743398968202,4.40495704,604.7,603.74,0.33126842]
[1743398968396,0.82122136,604.69,603.74,0.33126842]
[1743398968595,0.82122136,604.7,603.74,0.33126842]
[1743398968799,0.28805086,604.74,603.74,0.33126842]
[1743398969497,2.1344918,604.91,603.74,0.33126842]
[1743398969697,0.30412507,604.9,603.74,0.33126842]
[1743398969896,0.28802701,604.73,603.74,0.33126842]
[1743398970296,5.71860718,604.89,603.74,0.33126842]
[1743398970496,2.43849452,604.88,603.74,0.33126842]
[1743398970701,0.30412507,604.87,603.74,0.33126842]
[1743398971203,1.1250364,604.87,603.74,0.33126842]
[1743398971398,0.30412507,604.86,603.74,0.33126842]
[1743398971598,2.43849452,604.86,603.74,0.33126842]
[1743398971799,0.30412507,604.85,603.74,0.33126842]
[1743398971999,2.43849452,604.85,603.74,0.33126842]
[1743398972202,0.30412507,604.84,603.74,0.33126842]
[1743398972402,1.1250364,604.84,603.74,0.33126842]
[1743398972603,0.30412507,604.83,603.74,0.33126842]
[1743398972807,2.43849452,604.83,603.74,0.33126842]
[1743398973002,0.30412507,604.82,603.74,0.33126842]
[1743398973203,2.43849452,604.82,603.74,0.33126842]
[1743398973405,0.30412507,604.81,603.74,0.33126842]
[1743398973801,0.59224867,604.81,603.74,0.33126842]
[1743398974005,0.30412507,604.8,603.74,0.33126842]
[1743398974205,1.1252445,604.8,603.74,0.33126842]
[1743398974509,5.72068042,604.8,603.74,0.33126842]
[1743398974806,2.43903673,604.79,603.74,0.33126842]
[1743398975107,0.30412621,604.78,603.74,0.33126842]
[1743398975306,2.43903673,604.78,603.74,0.33126842]
[1743398975501,6.02480663,604.78,603.74,0.33126842]
[1743398975708,2.43903673,604.77,603.74,0.33126842]
[1743398975907,0.30412621,604.76,603.75,0.28496021]
[1743398976108,0.30412621,604.76,603.76,0.33125745]
[1743398976308,0.82127902,604.76,603.76,0.33125745]
[1743398976503,0.30412507,604.75,603.76,0.33125745]
[1743398976707,2.13532546,604.75,603.76,0.33125745]
[1743398976910,5.72179802,604.75,603.76,0.33125745]
[1743398977106,2.13532546,604.74,603.76,0.33125745]
[1743398977312,5.72179802,604.74,603.76,0.33125745]
[1743398977511,2.13532546,604.73,603.76,0.33125745]
[1743398977710,5.72179802,604.73,603.76,0.33125745]
[1743398977907,2.13532546,604.72,603.76,0.33125745]
[1743398978107,3.72873604,604.72,603.76,0.33125745]
[1743398978311,3.58647256,604.71,603.76,0.33125745]
[1743398978512,5.72179802,604.71,603.76,0.33125745]
[1743398978714,1.93824003,604.7,603.76,0.33125745]
[1743398978916,5.52471259,604.7,603.76,0.33125745]
[1743398979111,0.82127902,604.69,603.76,0.33125745]
[1743398979415,4.40775158,604.69,603.76,0.33125745]
[1743398979616,0.82127902,604.68,603.76,0.33125745]
[1743398979815,4.69623211,604.68,603.76,0.33125745]
[1743398980115,2.20112956,604.67,603.76,0.33125745]
[1743398980416,2.90745702,604.67,603.76,0.33125745]
[1743398980614,5.10858658,604.67,603.76,0.33125745]
[1743398980810,2.20112956,604.66,603.76,0.33125745]
[1743398981511,4.30480592,604.91,603.76,0.33125745]
[1743398981713,5.83241629,604.9,603.76,0.33125745]
[1743398981916,6.03063876,604.89,603.76,0.33125745]
[1743398982117,6.03063876,604.88,603.76,0.33125745]
[1743398982414,6.03063876,604.87,603.76,0.33125745]
[1743398982613,6.03063876,604.86,603.76,0.33125745]
[1743398982815,6.03063876,604.85,603.76,0.33125745]
[1743398983118,6.03063876,604.84,603.76,0.33125745]
[1743398983418,5.04435754,604.83,603.76,0.33125745]
[1743398983718,3.89374693,604.82,603.76,0.33125745]
[1743398983919,2.4410298,604.81,603.76,0.33125745]
[1743398984218,0.30412928,604.8,603.76,0.33125745]
[1743398984813,1.42109029,604.8,603.76,0.33125745]
[1743398985018,0.30412928,604.79,603.76,0.33125745]
[1743398985215,1.42109029,604.79,603.76,0.33125745]
[1743398985414,0.30412928,604.78,603.76,0.33125745]
[1743398985619,3.82386547,604.78,603.76,0.33125745]
[1743398985821,1.42109029,604.77,603.76,0.33125745]
[1743398986121,4.6366972,604.77,603.76,0.33125745]
[1743398986321,1.42109451,604.76,603.76,0.33125745]
[1743398986522,6.84569268,604.76,603.76,0.33125745]
[1743398986816,8.94032095,604.75,603.76,0.33125745]
[1743398987122,6.03286393,604.74,603.76,0.33125745]
[1743398987422,2.44324628,604.73,603.76,0.33125745]
[1743398987616,0.30413226,604.72,603.76,0.33125745]
[1743398987819,1.12686842,604.72,603.76,0.33125745]
[1743398988019,6.84569268,604.72,603.76,0.33125745]
[1743398988224,5.72873167,604.71,603.76,0.33125745]
[1743398988419,8.63618869,604.7,603.76,0.33125745]
[1743398988621,5.72873167,604.69,603.76,0.33125745]
[1743398988823,2.13911402,604.68,603.76,0.33125745]
[1743398989016,0.82273616,604.68,603.76,0.33125745]
[1743398989215,3.73095236,604.68,603.76,0.33125745]
[1743398989421,4.70657866,604.67,603.76,0.33125745]
[1743398989617,2.14108788,604.66,603.76,0.33125745]
[1743398989923,3.52171005,604.66,603.76,0.33125745]
[1743398990123,6.42916707,604.66,603.76,0.33125745]
[1743398990316,6.84766654,604.65,603.76,0.33125745]
[1743398990521,5.73070553,604.64,603.76,0.33125745]
[1743398990718,5.73070553,604.63,603.76,0.33125745]
[1743398990923,5.73070553,604.62,603.76,0.33125745]
[1743398991119,5.74215075,604.61,603.76,0.33125745]
[1743398991324,5.74286978,604.6,603.76,0.33125745]
[1743398991525,5.74286978,604.59,603.76,0.33125745]
[1743398991825,5.74286978,604.58,603.76,0.33125745]
[1743398992019,4.4234276,604.57,603.76,0.33125745]
[1743398992229,0.82420197,604.56,603.76,0.33125745]
[1743398992523,1.11696101,604.55,603.76,0.33125745]
[1743398992721,1.11696101,604.54,603.76,0.33125745]
[1743398993228,4.6450058,604.54,603.76,0.33125745]
[1743398993427,3.59922563,604.53,603.76,0.33125745]
[1743398993621,5.74295287,604.53,603.76,0.33125745]
[1743398993821,1.94116298,604.52,603.76,0.33125745]
[1743398994024,6.8613737,604.52,603.76,0.33125745]
[1743398994325,5.74433781,604.51,603.76,0.33125745]
[1743398994528,5.74433781,604.5,603.76,0.33125745]
[1743398994822,2.14511218,604.49,603.76,0.33125745]
[1743398995026,3.73165899,604.49,603.76,0.33125745]
[1743398995228,3.59922563,604.48,603.76,0.33125745]
[1743398995425,4.71618664,604.48,603.76,0.33125745]
[1743398995626,0.82420197,604.47,603.76,0.33125745]
[1743398995927,2.20851952,604.47,603.76,0.33125745]
[1743398996122,2.90745702,604.47,603.76,0.33125745]
[1743398996319,4.29177457,604.47,603.76,0.33125745]
[1743398996520,1.38431755,604.47,603.76,0.33125745]
[1743398996723,4.42918893,604.56,603.76,0.33125745]
[1743398996924,0.82576166,604.55,603.76,0.33125745]
[1743398997129,2.21007921,604.55,603.76,0.33125745]
[1743398997422,1.3869713,604.55,603.76,0.33125745]
[1743398997622,1.94272267,604.56,603.76,0.33125745]
[1743398997825,3.73321868,604.56,603.76,0.33125745]
[1743398998026,1.3869713,604.55,603.76,0.33125745]
[1743398998322,3.04495557,604.55,603.76,0.33125745]
[1743398998628,1.11696101,604.54,603.76,0.33125745]
[1743398999024,1.11696101,604.53,603.76,0.33125745]
[1743398999521,3.32969397,604.54,603.76,0.33125745]
[1743399000224,2.21273296,604.54,603.76,0.33125745]
[1743399000427,2.21273296,604.56,603.76,0.33125745]
[1743399000729,1.11696101,604.55,603.76,0.33125745]
[1743399001824,2.21273296,604.56,603.76,0.33125745]
[1743399003728,2.21260679,604.56,603.76,0.33125745]
[1743399005627,2.21251322,604.56,603.76,0.33125745]
[1743399008640,2.90745702,604.57,603.76,0.33125745]
[1743399008842,4.29413937,604.57,603.76,0.33125745]
[1743399009138,2.006,604.58,603.77,0.28492132]
[1743399009334,2.006,604.58,603.78,0.33124648]
[1743399023553,2.006,604.58,603.79,0.28512215]
[1743399023747,2.006,604.58,603.8,0.3312355]
[1743399024149,2.006,604.58,603.81,0.28513125]
[1743399024351,2.006,604.58,603.82,0.33122453]
[1743399024554,2.006,604.58,603.83,0.28513125]
[1743399024754,2.006,604.58,603.84,0.33121356]
[1743399024950,2.006,604.58,603.85,0.28513125]
[1743399025150,2.006,604.58,603.86,0.33120259]
[1743399025354,2.006,604.58,603.87,0.28513125]
[1743399025656,2.006,604.58,603.88,0.33119162]
[1743399025956,2.006,604.58,603.89,0.28514152]
[1743399026158,2.006,604.58,603.9,0.33118065]
[1743399026356,2.006,604.58,603.91,0.28514152]
[1743399026656,2.006,604.58,603.91,0.61631669]
[1743399026854,2.006,604.58,603.92,0.28514152]
[1743399032853,2.006,604.58,603.91,0.33117517]
[1743399044761,7.7457608,604.58,603.91,0.33117517]
[1743399044958,4.42161951,604.57,603.91,0.33117517]
[1743399045266,4.42161951,604.56,603.91,0.33117517]
[1743399045459,2.90469669,604.55,603.91,0.33117517]
[1743399045659,6.50247889,604.55,603.91,0.33117517]
[1743399045860,1.38376049,604.54,603.91,0.33117517]
[1743399046163,2.2075978,604.54,603.91,0.33117517]
[1743399046365,0.28812717,604.6,603.91,0.33117517]
[1743399047466,1.11696101,604.7,603.91,0.33117517]
[1743399047767,0.30413762,604.69,603.91,0.33117517]
[1743399047964,1.11696101,604.68,603.91,0.33117517]
[1743399048164,0.30413762,604.67,603.91,0.33117517]
[1743399048365,1.42109863,604.67,603.91,0.33117517]
[1743399048564,0.30413762,604.66,603.91,0.33117517]
[1743399048764,0.28812717,604.66,603.91,0.33117517]
[1743399049267,5.33510484,604.66,603.91,0.33117517]
[1743399049467,7.48647527,604.65,603.91,0.33117517]
[1743399049667,5.74047527,604.64,603.91,0.33117517]
[1743399049867,2.14228098,604.63,603.91,0.33117517]
[1743399050064,0.82383731,604.63,603.91,0.33117517]
[1743399050461,3.728534,604.63,603.91,0.33117517]
[1743399050665,3.59819429,604.62,603.91,0.33117517]
[1743399050863,0.82383731,604.61,603.91,0.33117517]
[1743399051166,3.728534,604.61,603.91,0.33117517]
[1743399051359,1.38400558,604.6,603.91,0.33117517]
[1743399051563,2.20784289,604.6,603.91,0.33117517]
[1743399051962,5.74078538,604.63,603.91,0.33117517]
[1743399052168,3.728534,604.62,603.91,0.33117517]
[1743399052363,3.59848816,604.61,603.91,0.33117517]
[1743399052566,0.82406734,604.6,603.91,0.33117517]
[1743399052768,1.11696101,604.6,603.91,0.33117517]
[1743399052965,3.32503393,604.6,603.91,0.33117517]
[1743399053366,2.20807292,604.59,603.91,0.33117517]
[1743399053566,0.82406734,604.62,603.91,0.33117517]
[1743399053764,5.74125526,604.63,603.91,0.33117517]
[1743399054069,3.72876403,604.62,603.91,0.33117517]
[1743399054265,1.38400558,604.61,603.91,0.33117517]
[1743399054465,4.42382823,604.61,603.91,0.33117517]
[1743399054668,0.82426795,604.6,603.91,0.33117517]
[1743399054968,3.72896464,604.6,603.91,0.33117517]
[1743399055267,1.38444626,604.59,603.91,0.33117517]
[1743399055465,2.20871421,604.59,603.91,0.33117517]
[1743399055866,5.74324726,604.63,603.91,0.33117517]
[1743399056066,3.72896464,604.62,603.91,0.33117517]
[1743399056271,3.59992831,604.61,603.91,0.33117517]
[1743399056564,1.11696101,604.6,603.91,0.33117517]
[1743399056769,5.54115727,604.6,603.91,0.33117517]
[1743399056966,0.82426795,604.59,603.91,0.33117517]
[1743399057166,4.42419626,604.59,603.91,0.33117517]
[1743399057362,0.82426795,604.58,603.91,0.33117517]
[1743399057568,2.20871421,604.58,603.91,0.33117517]
[1743399057765,5.1134109,604.58,603.91,0.33117517]
[1743399057971,2.20871421,604.57,603.91,0.33117517]
[1743399058572,5.74372198,604.63,603.91,0.33117517]
[1743399058792,2.14349698,604.62,603.91,0.33117517]
[1743399058972,0.82426795,604.62,603.91,0.33117517]
[1743399059372,3.72896464,604.62,603.91,0.33117517]
[1743399059570,3.600225,604.61,603.91,0.33117517]
[1743399059775,5.74372198,604.61,603.91,0.33117517]
[1743399060069,1.94122896,604.6,603.91,0.33117517]
[1743399060273,3.32567522,604.6,603.91,0.33117517]
[1743399060573,2.50140727,604.6,603.91,0.33117517]
[1743399060869,4.28914295,604.64,603.91,0.33117517]
[1743399061070,2.20889627,604.63,603.91,0.33117517]
[1743399061474,1.38444626,604.63,603.91,0.33117517]
[1743399061673,1.38444626,604.64,603.91,0.33117517]
[1743399061870,1.746,604.65,603.91,0.33117517]
[1743399065872,5.07173716,604.65,603.91,0.33117517]
[1743399066073,1.38444626,604.64,603.91,0.33117517]
[1743399066578,2.20878643,604.64,603.91,0.33117517]
[1743399067073,1.94130118,604.64,603.91,0.33117517]
[1743399067279,3.73017318,604.64,603.91,0.33117517]
[1743399067483,0.82434017,604.63,603.91,0.33117517]
[1743399067683,2.20898544,604.63,603.91,0.33117517]
[1743399068085,2.20898544,604.64,603.91,0.33117517]
[1743399068285,0.82434017,604.64,603.91,0.33117517]
[1743399068479,1.746,604.65,603.91,0.33117517]
[1743399071983,2.57034017,604.65,603.91,0.33117517]
[1743399072185,6.79534563,604.65,603.91,0.33117517]
[1743399072380,5.74367655,604.64,603.91,0.33117517]
[1743399072581,0.82434017,604.63,603.91,0.33117517]
[1743399072785,4.42486206,604.63,603.91,0.33117517]
[1743399073084,0.82446127,604.62,603.91,0.33117517]
[1743399073283,3.73032708,604.62,603.91,0.33117517]
[1743399073486,1.38476953,604.61,603.91,0.33117517]
[1743399073780,2.2092308,604.61,603.91,0.33117517]
[1743399073985,5.74393802,604.63,603.91,0.33117517]
[1743399074181,0.82446127,604.62,603.91,0.33117517]
[1743399074478,2.90586581,604.62,603.91,0.33117517]
[1743399074682,7.33060578,604.62,603.91,0.33117517]
[1743399074880,4.42473997,604.61,603.91,0.33117517]
[1743399075081,2.90586581,604.64,603.91,0.33117517]
[1743399075082,2.20915369,604.6,603.91,0.33117517]
[1743399075276,5.74378064,604.63,603.91,0.33117517]
[1743399075482,2.90586581,604.6,603.91,0.33117517]
[1743399075677,1.38472258,604.61,603.91,0.33117517]
[1743399075882,2.20915369,604.61,603.91,0.33117517]
[1743399076678,4.42462545,604.63,603.91,0.33117517]